[Event "Early-Titled-Tuesday-Blitz-January-16-2024"]
[Site "Chess.com"]
[Date "2024.01.16"]
[Round "7"]
[White "carloseduar100"]
[Black "MIss_MIaMI"]
[Result "1-0"]
[WhiteElo "2276"]
[BlackElo "2403"]
[TimeControl "180+1"]
[EndTime "9:24:27 PST"]
[Termination "carloseduar100 won by checkmate"]

1. d4 {[%clk 0:03:00.4]} 1... c5 {[%clk 0:03:00.6]} 2. d5 {[%clk 0:03:00.1]}
2... g6 {[%clk 0:03:01.3]} 3. Nf3 {[%clk 0:02:59.6]} 3... Bg7 {[%clk 0:03:01.7]}
4. e4 {[%clk 0:02:59.4]} 4... a6 {[%clk 0:03:01.9]} 5. c3 {[%clk 0:02:56.4]}
5... b5 {[%clk 0:03:00.7]} 6. Bg5 {[%clk 0:02:54.3]} 6... d6 {[%clk 0:03:00]} 7.
Nbd2 {[%clk 0:02:54.5]} 7... Nf6 {[%clk 0:02:57]} 8. Bd3 {[%clk 0:02:53.6]} 8...
Bg4 {[%clk 0:02:53.1]} 9. h3 {[%clk 0:02:53.1]} 9... Bxf3 {[%clk 0:02:53.8]} 10.
Qxf3 {[%clk 0:02:53.4]} 10... Nbd7 {[%clk 0:02:54.7]} 11. O-O {[%clk 0:02:53.3]}
11... Ne5 {[%clk 0:02:54.9]} 12. Qe2 {[%clk 0:02:53.1]} 12... Nxd3 {[%clk
0:02:55.5]} 13. Qxd3 {[%clk 0:02:53.5]} 13... O-O {[%clk 0:02:51.9]} 14. Rae1
{[%clk 0:02:50.3]} 14... Nd7 {[%clk 0:02:49.4]} 15. f4 {[%clk 0:02:49.6]} 15...
Qb6 {[%clk 0:02:41.6]} 16. Bxe7 {[%clk 0:02:42.4]} 16... c4+ {[%clk 0:02:41.5]}
17. Qe3 {[%clk 0:02:42.6]} 17... Qxe3+ {[%clk 0:02:28.1]} 18. Rxe3 {[%clk
0:02:43.5]} 18... Rfe8 {[%clk 0:02:29]} 19. Bxd6 {[%clk 0:02:43.5]} 19... Nb6
{[%clk 0:02:23.6]} 20. e5 {[%clk 0:02:29.7]} 20... Nxd5 {[%clk 0:02:23.2]} 21.
Re2 {[%clk 0:02:26.2]} 21... Rad8 {[%clk 0:02:07]} 22. Ne4 {[%clk 0:02:26.2]}
22... f5 {[%clk 0:01:52.5]} 23. Ng3 {[%clk 0:02:20.4]} 23... Bh6 {[%clk
0:01:48.2]} 24. Ref2 {[%clk 0:02:17.5]} 24... Kf7 {[%clk 0:01:34.5]} 25. Ne2
{[%clk 0:02:15.9]} 25... Rd7 {[%clk 0:01:12.5]} 26. g3 {[%clk 0:02:15.2]} 26...
Nc7 {[%clk 0:01:12.2]} 27. Rd1 {[%clk 0:02:12.3]} 27... Ne6 {[%clk 0:01:11.7]}
28. Kg2 {[%clk 0:02:09]} 28... Bf8 {[%clk 0:01:10.7]} 29. Nd4 {[%clk 0:01:43.6]}
29... Bxd6 {[%clk 0:01:09.2]} 30. Nxe6 {[%clk 0:01:42.3]} 30... Rxe6 {[%clk
0:01:10.1]} 31. Rfd2 {[%clk 0:01:41.4]} 31... Ke7 {[%clk 0:01:09.7]} 32. Kf3
{[%clk 0:01:39.7]} 32... a5 {[%clk 0:01:01.8]} 33. Rd5 {[%clk 0:01:39.2]} 33...
b4 {[%clk 0:01:01.9]} 34. R1d4 {[%clk 0:01:31.9]} 34... bxc3 {[%clk 0:00:56.7]}
35. bxc3 {[%clk 0:01:31.9]} 35... h6 {[%clk 0:00:51.3]} 36. exd6+ {[%clk
0:01:31.4]} 36... Rexd6 {[%clk 0:00:49.1]} 37. Re5+ {[%clk 0:01:29.1]} 37... Kf6
{[%clk 0:00:48.5]} 38. Rxc4 {[%clk 0:01:23.3]} 38... Rd3+ {[%clk 0:00:48]} 39.
Kf2 {[%clk 0:01:23.5]} 39... Rd2+ {[%clk 0:00:44]} 40. Re2 {[%clk 0:01:23.9]}
40... R7d6 {[%clk 0:00:33.3]} 41. a4 {[%clk 0:01:20.4]} 41... R2d5 {[%clk
0:00:28.8]} 42. Rb2 {[%clk 0:01:16]} 42... g5 {[%clk 0:00:25.4]} 43. fxg5+
{[%clk 0:01:15.5]} 43... hxg5 {[%clk 0:00:25.9]} 44. Rb5 {[%clk 0:01:14.6]}
44... Rd2+ {[%clk 0:00:25.4]} 45. Ke1 {[%clk 0:01:11.9]} 45... Rd1+ {[%clk
0:00:25.3]} 46. Ke2 {[%clk 0:01:12.3]} 46... R6d2+ {[%clk 0:00:25.1]} 47. Ke3
{[%clk 0:01:12.6]} 47... Rd3+ {[%clk 0:00:25.8]} 48. Ke2 {[%clk 0:01:12.9]}
48... R1d2+ {[%clk 0:00:26.6]} 49. Ke1 {[%clk 0:01:13.3]} 49... Rd5 {[%clk
0:00:14.8]} 50. Rc6+ {[%clk 0:01:10.3]} 50... Ke5 {[%clk 0:00:14.2]} 51. Rxd5+
{[%clk 0:01:00.1]} 51... Rxd5 {[%clk 0:00:15.1]} 52. Rb6 {[%clk 0:00:58.8]}
52... Ke4 {[%clk 0:00:11.6]} 53. h4 {[%clk 0:00:41.7]} 53... gxh4 {[%clk
0:00:11.2]} 54. gxh4 {[%clk 0:00:42.6]} 54... f4 {[%clk 0:00:08.6]} 55. Re6+
{[%clk 0:00:32.9]} 55... Kf3 {[%clk 0:00:08.3]} 56. Rg6 {[%clk 0:00:30.7]} 56...
Rh5 {[%clk 0:00:07.9]} 57. Rg5 {[%clk 0:00:27.7]} 57... Rxh4 {[%clk 0:00:08]}
58. Rxa5 {[%clk 0:00:28.3]} 58... Rh1+ {[%clk 0:00:08.7]} 59. Kd2 {[%clk
0:00:28.6]} 59... Rh2+ {[%clk 0:00:08.1]} 60. Kd3 {[%clk 0:00:28.5]} 60... Kf2
{[%clk 0:00:06.1]} 61. Rf5 {[%clk 0:00:27.8]} 61... f3 {[%clk 0:00:06.7]} 62. a5
{[%clk 0:00:28.1]} 62... Rh1 {[%clk 0:00:05.7]} 63. c4 {[%clk 0:00:24.4]} 63...
Rd1+ {[%clk 0:00:05.9]} 64. Ke4 {[%clk 0:00:24.7]} 64... Re1+ {[%clk 0:00:06.2]}
65. Kd5 {[%clk 0:00:25]} 65... Ra1 {[%clk 0:00:04.7]} 66. Kc6 {[%clk 0:00:25]}
66... Ke3 {[%clk 0:00:03.6]} 67. Kb6 {[%clk 0:00:25]} 67... Rb1+ {[%clk
0:00:02.2]} 68. Kc6 {[%clk 0:00:21.4]} 68... f2 {[%clk 0:00:02.5]} 69. c5 {[%clk
0:00:21.1]} 69... Ra1 {[%clk 0:00:02.4]} 70. Kb6 {[%clk 0:00:20.5]} 70... Rb1+
{[%clk 0:00:03.1]} 71. Ka7 {[%clk 0:00:20.5]} 71... Ra1 {[%clk 0:00:03.8]} 72.
a6 {[%clk 0:00:20.4]} 72... Ra2 {[%clk 0:00:04.4]} 73. c6 {[%clk 0:00:20.1]}
73... Ke4 {[%clk 0:00:05.1]} 74. Rf7 {[%clk 0:00:20.1]} 74... Kd5 {[%clk
0:00:04.7]} 75. c7 {[%clk 0:00:20.2]} 75... Kd6 {[%clk 0:00:03.1]} 76. c8=Q
{[%clk 0:00:19.6]} 76... Rxa6+ {[%clk 0:00:01.2]} 77. Kxa6 {[%clk 0:00:19.6]}
77... f1=Q+ {[%clk 0:00:02.1]} 78. Rxf1 {[%clk 0:00:17.7]} 78... Ke7 {[%clk
0:00:02.1]} 79. Qc7+ {[%clk 0:00:17.1]} 79... Ke6 {[%clk 0:00:02.5]} 80. Re1+
{[%clk 0:00:17.4]} 80... Kd5 {[%clk 0:00:02.8]} 81. Qd7+ {[%clk 0:00:17.4]}
81... Kc4 {[%clk 0:00:03]} 82. Rc1+ {[%clk 0:00:17.9]} 82... Kb3 {[%clk
0:00:03.7]} 83. Qb5+ {[%clk 0:00:18.4]} 83... Ka2 {[%clk 0:00:04.6]} 84. Rc4
{[%clk 0:00:17.7]} 84... Ka3 {[%clk 0:00:04.3]} 85. Ra4# {[%clk 0:00:18.6]} 1-0

[Event "Early-Titled-Tuesday-Blitz-January-16-2024"]
[Site "Chess.com"]
[Date "2024.01.16"]
[Round "7"]
[White "AlexPapasimakopoulos"]
[Black "Arystanner"]
[Result "1/2-1/2"]
[WhiteElo "2648"]
[BlackElo "2799"]
[TimeControl "180+1"]
[EndTime "9:24:33 PST"]
[Termination "Game drawn - insufficient material"]

1. d4 {[%clk 0:03:00.9]} 1... d5 {[%clk 0:02:59.9]} 2. c4 {[%clk 0:02:58.6]}
2... e6 {[%clk 0:03:00.3]} 3. Nc3 {[%clk 0:02:58.5]} 3... Nf6 {[%clk 0:03:00.9]}
4. cxd5 {[%clk 0:02:58.8]} 4... exd5 {[%clk 0:03:01.8]} 5. Bg5 {[%clk
0:02:59.1]} 5... c6 {[%clk 0:03:02.3]} 6. e3 {[%clk 0:02:59.5]} 6... Bd6 {[%clk
0:03:02.6]} 7. Bd3 {[%clk 0:02:59.9]} 7... O-O {[%clk 0:03:03.1]} 8. Qc2 {[%clk
0:03:00.2]} 8... h6 {[%clk 0:03:03.4]} 9. Bh4 {[%clk 0:03:00.6]} 9... Re8 {[%clk
0:03:03.6]} 10. Nf3 {[%clk 0:03:00.7]} 10... Be6 {[%clk 0:03:03.3]} 11. O-O
{[%clk 0:03:00.1]} 11... Nbd7 {[%clk 0:03:03.6]} 12. Rab1 {[%clk 0:03:00.5]}
12... a5 {[%clk 0:03:03.2]} 13. a3 {[%clk 0:03:00.5]} 13... Qb8 {[%clk
0:03:02.6]} 14. Bg3 {[%clk 0:02:56.2]} 14... Bxg3 {[%clk 0:03:02.4]} 15. hxg3
{[%clk 0:02:57.1]} 15... Qd6 {[%clk 0:03:02.9]} 16. Rfe1 {[%clk 0:02:53.8]}
16... Bg4 {[%clk 0:02:58.2]} 17. Na4 {[%clk 0:02:47.5]} 17... Ne4 {[%clk
0:02:54.9]} 18. Bxe4 {[%clk 0:02:45.3]} 18... Rxe4 {[%clk 0:02:52.3]} 19. Nd2
{[%clk 0:02:40.7]} 19... Re7 {[%clk 0:02:51.3]} 20. Nb3 {[%clk 0:02:39.8]} 20...
Rae8 {[%clk 0:02:50.3]} 21. Nbc5 {[%clk 0:02:36.7]} 21... Nxc5 {[%clk 0:02:50]}
22. Qxc5 {[%clk 0:02:35.9]} 22... Qd8 {[%clk 0:02:47.1]} 23. Qb6 {[%clk
0:02:34.6]} 23... h5 {[%clk 0:02:17.8]} 24. Qxd8 {[%clk 0:02:33.2]} 24... Rxd8
{[%clk 0:02:17.9]} 25. Nb6 {[%clk 0:02:25.6]} 25... g5 {[%clk 0:01:59.3]} 26.
Rbc1 {[%clk 0:02:25.4]} 26... h4 {[%clk 0:01:59.2]} 27. gxh4 {[%clk 0:02:24.9]}
27... gxh4 {[%clk 0:02:00.1]} 28. f3 {[%clk 0:02:22.5]} 28... Bf5 {[%clk
0:01:59.8]} 29. Rc5 {[%clk 0:02:21.7]} 29... Rde8 {[%clk 0:01:59.5]} 30. Kf2
{[%clk 0:02:21.8]} 30... Kg7 {[%clk 0:01:59.5]} 31. Rxa5 {[%clk 0:02:21.2]}
31... Kf6 {[%clk 0:01:58.9]} 32. Ra8 {[%clk 0:02:19.5]} 32... Rxa8 {[%clk
0:01:55.9]} 33. Nxa8 {[%clk 0:02:20.4]} 33... b5 {[%clk 0:01:55.8]} 34. Rc1
{[%clk 0:02:13.5]} 34... Bd7 {[%clk 0:01:51.7]} 35. Nb6 {[%clk 0:02:12.1]} 35...
Be8 {[%clk 0:01:51.6]} 36. a4 {[%clk 0:02:09]} 36... bxa4 {[%clk 0:01:38.8]} 37.
Nxa4 {[%clk 0:02:06]} 37... Rb7 {[%clk 0:01:38.7]} 38. Rc3 {[%clk 0:01:57.7]}
38... Kg5 {[%clk 0:01:32.6]} 39. b3 {[%clk 0:01:56.9]} 39... f6 {[%clk
0:01:32.6]} 40. Nc5 {[%clk 0:01:48.2]} 40... Ra7 {[%clk 0:01:32.9]} 41. Rc2
{[%clk 0:01:48.8]} 41... Bf7 {[%clk 0:01:22.2]} 42. b4 {[%clk 0:01:33.8]} 42...
Ra1 {[%clk 0:01:18.8]} 43. Nb3 {[%clk 0:01:24.1]} 43... Rb1 {[%clk 0:01:11.2]}
44. Na5 {[%clk 0:01:24.4]} 44... Bg6 {[%clk 0:01:03.8]} 45. Ra2 {[%clk
0:01:19.6]} 45... Be8 {[%clk 0:01:03.2]} 46. Rc2 {[%clk 0:01:18.2]} 46... Bg6
{[%clk 0:01:02]} 47. Rxc6 {[%clk 0:01:12.2]} 47... Bd3 {[%clk 0:00:50.1]} 48. e4
{[%clk 0:00:52.4]} 48... f5 {[%clk 0:00:49.1]} 49. Ke3 {[%clk 0:00:29.4]} 49...
dxe4 {[%clk 0:00:49.5]} 50. fxe4 {[%clk 0:00:28.6]} 50... Bxe4 {[%clk
0:00:49.6]} 51. Rc8 {[%clk 0:00:23.9]} 51... Rxb4 {[%clk 0:00:46]} 52. Nc4
{[%clk 0:00:22.4]} 52... Rb3+ {[%clk 0:00:43.2]} 53. Kf2 {[%clk 0:00:22.2]}
53... Kf4 {[%clk 0:00:42.6]} 54. Rh8 {[%clk 0:00:19.3]} 54... Rc3 {[%clk
0:00:43]} 55. Ne5 {[%clk 0:00:11.4]} 55... Rc2+ {[%clk 0:00:42.6]} 56. Kf1
{[%clk 0:00:10.9]} 56... Bxg2+ {[%clk 0:00:42.6]} 57. Kg1 {[%clk 0:00:11.5]}
57... h3 {[%clk 0:00:42.1]} 58. Nd3+ {[%clk 0:00:06.5]} 58... Ke3 {[%clk
0:00:42.4]} 59. Ne1 {[%clk 0:00:04.9]} 59... Rc1 {[%clk 0:00:42.8]} 60. Re8+
{[%clk 0:00:05]} 60... Kd2 {[%clk 0:00:42.8]} 61. Kf2 {[%clk 0:00:05.4]} 61...
Be4 {[%clk 0:00:41.9]} 62. Nf3+ {[%clk 0:00:02.5]} 62... Bxf3 {[%clk 0:00:41.7]}
63. Kxf3 {[%clk 0:00:02.7]} 63... h2 {[%clk 0:00:41.5]} 64. Re2+ {[%clk
0:00:03.3]} 64... Kd3 {[%clk 0:00:36.8]} 65. Rxh2 {[%clk 0:00:04.2]} 65... Kxd4
{[%clk 0:00:31]} 66. Rd2+ {[%clk 0:00:03.8]} 66... Ke5 {[%clk 0:00:31]} 67. Kf2
{[%clk 0:00:04.3]} 67... Ke4 {[%clk 0:00:30.1]} 68. Re2+ {[%clk 0:00:04.4]}
68... Kf4 {[%clk 0:00:30.5]} 69. Ra2 {[%clk 0:00:05]} 69... Rc4 {[%clk
0:00:28.6]} 70. Ra3 {[%clk 0:00:04.7]} 70... Rb4 {[%clk 0:00:29.2]} 71. Rf3+
{[%clk 0:00:03.3]} 71... Kg5 {[%clk 0:00:29.4]} 72. Ra3 {[%clk 0:00:03.3]} 72...
Rf4+ {[%clk 0:00:28.9]} 73. Kg3 {[%clk 0:00:03.8]} 73... Rg4+ {[%clk 0:00:29]}
74. Kf3 {[%clk 0:00:04.3]} 74... Rh4 {[%clk 0:00:29.6]} 75. Kg3 {[%clk
0:00:04.9]} 75... f4+ {[%clk 0:00:29.9]} 76. Kg2 {[%clk 0:00:05.5]} 76... Kg4
{[%clk 0:00:30.5]} 77. Rb3 {[%clk 0:00:05.9]} 77... Rh8 {[%clk 0:00:30.4]} 78.
Rb7 {[%clk 0:00:03.4]} 78... Rg8 {[%clk 0:00:26.5]} 79. Kf2 {[%clk 0:00:03.4]}
79... Rg5 {[%clk 0:00:27]} 80. Rf7 {[%clk 0:00:03.5]} 80... Rg6 {[%clk
0:00:26.7]} 81. Rf8 {[%clk 0:00:03.9]} 81... Re6 {[%clk 0:00:27]} 82. Rg8+
{[%clk 0:00:04.1]} 82... Kf5 {[%clk 0:00:27.7]} 83. Rf8+ {[%clk 0:00:04.7]}
83... Ke4 {[%clk 0:00:28.1]} 84. Rf7 {[%clk 0:00:05.3]} 84... Re5 {[%clk
0:00:28.4]} 85. Rf8 {[%clk 0:00:05.7]} 85... Re7 {[%clk 0:00:28.9]} 86. Rf6
{[%clk 0:00:06]} 86... Ke5 {[%clk 0:00:29]} 87. Rf8 {[%clk 0:00:06.7]} 87... Ke4
{[%clk 0:00:29.7]} 88. Rf6 {[%clk 0:00:06.7]} 88... Ra7 {[%clk 0:00:29.2]} 89.
Re6+ {[%clk 0:00:06.4]} 89... Kf5 {[%clk 0:00:29.8]} 90. Re8 {[%clk 0:00:07.1]}
90... Ra2+ {[%clk 0:00:30.3]} 91. Kf3 {[%clk 0:00:07.4]} 91... Ra3+ {[%clk
0:00:30.9]} 92. Kf2 {[%clk 0:00:07.9]} 92... Kg4 {[%clk 0:00:29.7]} 93. Rg8+
{[%clk 0:00:07.7]} 93... Kf5 {[%clk 0:00:29.7]} 94. Rf8+ {[%clk 0:00:08.4]}
94... Kg5 {[%clk 0:00:30.2]} 95. Rg8+ {[%clk 0:00:08.7]} 95... Kf6 {[%clk
0:00:30.9]} 96. Rf8+ {[%clk 0:00:09.2]} 96... Ke5 {[%clk 0:00:31.6]} 97. Re8+
{[%clk 0:00:09.6]} 97... Kd6 {[%clk 0:00:32.4]} 98. Re4 {[%clk 0:00:08.7]} 98...
Kd5 {[%clk 0:00:31.4]} 99. Rxf4 {[%clk 0:00:09.1]} 99... Ke5 {[%clk 0:00:32.2]}
100. Rf3 {[%clk 0:00:09.5]} 100... Rxf3+ {[%clk 0:00:32.6]} 101. Kxf3 {[%clk
0:00:10.4]} 1/2-1/2

[Event "Early-Titled-Tuesday-Blitz-January-16-2024"]
[Site "Chess.com"]
[Date "2024.01.16"]
[Round "7"]
[White "azikom"]
[Black "chito89"]
[Result "0-1"]
[WhiteElo "2688"]
[BlackElo "2935"]
[TimeControl "180+1"]
[EndTime "9:24:42 PST"]
[Termination "chito89 won on time"]

1. d4 {[%clk 0:03:00.9]} 1... d5 {[%clk 0:02:54.6]} 2. Nf3 {[%clk 0:03:00.3]}
2... c5 {[%clk 0:02:52.7]} 3. e3 {[%clk 0:02:57.2]} 3... Nc6 {[%clk 0:02:51.7]}
4. c3 {[%clk 0:02:56.9]} 4... e6 {[%clk 0:02:49.8]} 5. Nbd2 {[%clk 0:02:57.2]}
5... Nf6 {[%clk 0:02:49.4]} 6. Bd3 {[%clk 0:02:54.3]} 6... b6 {[%clk 0:02:49.6]}
7. O-O {[%clk 0:02:54.6]} 7... Bb7 {[%clk 0:02:49.8]} 8. Qe2 {[%clk 0:02:54.7]}
8... Qc7 {[%clk 0:02:48.5]} 9. a3 {[%clk 0:02:53.7]} 9... Bd6 {[%clk 0:02:42.1]}
10. e4 {[%clk 0:02:47.7]} 10... cxd4 {[%clk 0:02:41]} 11. cxd4 {[%clk
0:02:46.7]} 11... dxe4 {[%clk 0:02:39.8]} 12. Nxe4 {[%clk 0:02:47.6]} 12... Nxe4
{[%clk 0:02:34.2]} 13. Bxe4 {[%clk 0:02:46.4]} 13... Ne7 {[%clk 0:02:33.7]} 14.
Bg5 {[%clk 0:02:22.2]} 14... Bxe4 {[%clk 0:02:28.2]} 15. Qxe4 {[%clk 0:02:21.8]}
15... Nd5 {[%clk 0:02:27.4]} 16. Rac1 {[%clk 0:02:15.1]} 16... Qd7 {[%clk
0:02:20.8]} 17. Ne5 {[%clk 0:02:11.6]} 17... Bxe5 {[%clk 0:02:20.4]} 18. dxe5
{[%clk 0:02:11.5]} 18... O-O {[%clk 0:02:14.6]} 19. Qg4 {[%clk 0:02:08.1]} 19...
Kh8 {[%clk 0:02:14.1]} 20. h4 {[%clk 0:02:04.6]} 20... Rac8 {[%clk 0:02:11.7]}
21. h5 {[%clk 0:02:02.7]} 21... h6 {[%clk 0:02:12.1]} 22. Bd2 {[%clk 0:01:56.3]}
22... Rxc1 {[%clk 0:02:12]} 23. Rxc1 {[%clk 0:01:55.2]} 23... Rc8 {[%clk
0:02:12.5]} 24. Qe4 {[%clk 0:01:36.7]} 24... Rxc1+ {[%clk 0:02:06.8]} 25. Bxc1
{[%clk 0:01:37.6]} 25... Qc6 {[%clk 0:01:56.3]} 26. Bd2 {[%clk 0:01:31.9]} 26...
Kg8 {[%clk 0:01:47.9]} 27. g3 {[%clk 0:01:30.6]} 27... Kf8 {[%clk 0:01:47.4]}
28. Bb4+ {[%clk 0:01:24.9]} 28... Ke8 {[%clk 0:01:47.6]} 29. Bd2 {[%clk
0:01:24.9]} 29... Qb5 {[%clk 0:01:39.5]} 30. Bc1 {[%clk 0:01:15.2]} 30... Qb3
{[%clk 0:01:36.5]} 31. Qg4 {[%clk 0:00:54.7]} 31... Qc2 {[%clk 0:01:22.2]} 32.
Bf4 {[%clk 0:00:45.3]} 32... Kf8 {[%clk 0:01:22.5]} 33. b4 {[%clk 0:00:33.3]}
33... Qe4 {[%clk 0:01:10.5]} 34. Qh4 {[%clk 0:00:30.9]} 34... Kg8 {[%clk
0:00:55.1]} 35. Qd8+ {[%clk 0:00:28.7]} 35... Kh7 {[%clk 0:00:55.7]} 36. Qd7
{[%clk 0:00:20.8]} 36... Nxf4 {[%clk 0:00:56.2]} 37. gxf4 {[%clk 0:00:20.8]}
37... Qxf4 {[%clk 0:00:56.6]} 38. Qxa7 {[%clk 0:00:20.5]} 38... b5 {[%clk
0:00:55.4]} 39. Qc5 {[%clk 0:00:17.7]} 39... Qg4+ {[%clk 0:00:51.2]} 40. Kf1
{[%clk 0:00:17.4]} 40... Qd1+ {[%clk 0:00:45.8]} 41. Kg2 {[%clk 0:00:17.2]}
41... Qd3 {[%clk 0:00:46.5]} 42. f3 {[%clk 0:00:10.3]} 42... g6 {[%clk 0:00:42]}
43. hxg6+ {[%clk 0:00:10.1]} 43... Kxg6 {[%clk 0:00:41.8]} 44. Kg3 {[%clk
0:00:07.2]} 44... Qe2 {[%clk 0:00:26.6]} 45. Qc7 {[%clk 0:00:05.3]} 45... h5
{[%clk 0:00:25.7]} 46. Qb8 {[%clk 0:00:05]} 46... Kf5 {[%clk 0:00:24.6]} 47. Qf8
{[%clk 0:00:03.5]} 47... Qxe5+ {[%clk 0:00:24.5]} 48. Kg2 {[%clk 0:00:03.6]}
48... Kg6 {[%clk 0:00:22.1]} 49. Qg8+ {[%clk 0:00:03.4]} 49... Qg7 {[%clk
0:00:22.8]} 50. Qe8 {[%clk 0:00:03.5]} 50... Kf5+ {[%clk 0:00:18.3]} 51. Kf2
{[%clk 0:00:02.9]} 51... Qd4+ {[%clk 0:00:18.5]} 52. Kg3 {[%clk 0:00:02.7]}
52... Qe5+ {[%clk 0:00:18.7]} 53. Kf2 {[%clk 0:00:02.6]} 53... Qh2+ {[%clk
0:00:12.9]} 54. Ke3 {[%clk 0:00:02.6]} 54... Qg1+ {[%clk 0:00:13.1]} 55. Ke2
{[%clk 0:00:02.7]} 55... Kf6 {[%clk 0:00:08.8]} 56. Qh8+ {[%clk 0:00:02.5]}
56... Ke7 {[%clk 0:00:08]} 57. Qxh5 {[%clk 0:00:02.2]} 57... Qg2+ {[%clk
0:00:06.5]} 58. Ke3 {[%clk 0:00:02.3]} 58... Qg1+ {[%clk 0:00:07.1]} 59. Ke2
{[%clk 0:00:02.4]} 59... Qc1 {[%clk 0:00:07.7]} 60. Qxb5 {[%clk 0:00:01.6]}
60... Qb2+ {[%clk 0:00:07.5]} 61. Ke3 {[%clk 0:00:01.7]} 61... Qxa3+ {[%clk
0:00:08.2]} 62. Ke2 {[%clk 0:00:02.2]} 62... Qb2+ {[%clk 0:00:08.2]} 63. Ke3
{[%clk 0:00:02.5]} 63... Qc3+ {[%clk 0:00:08.9]} 64. Ke2 {[%clk 0:00:02.8]}
64... Kf6 {[%clk 0:00:09.2]} 65. Qb6 {[%clk 0:00:02.8]} 65... Ke5 {[%clk
0:00:07]} 66. b5 {[%clk 0:00:02.5]} 66... Qc4+ {[%clk 0:00:06.7]} 67. Ke3 {[%clk
0:00:01.7]} 67... f5 {[%clk 0:00:06.9]} 68. Qb8+ {[%clk 0:00:01.5]} 68... Kd5
{[%clk 0:00:07.6]} 69. b6 {[%clk 0:00:01.6]} 69... f4+ {[%clk 0:00:07.1]} 70.
Kf2 {[%clk 0:00:01.1]} 70... Qc2+ {[%clk 0:00:07.3]} 71. Kf1 {[%clk 0:00:01.3]}
71... Qd1+ {[%clk 0:00:05.9]} 72. Kg2 {[%clk 0:00:01.6]} 72... Qe2+ {[%clk
0:00:06.1]} 73. Kg1 {[%clk 0:00:01.9]} 73... Qe1+ {[%clk 0:00:06.7]} 74. Kg2
{[%clk 0:00:02.3]} 74... Qg3+ {[%clk 0:00:07.4]} 75. Kf1 {[%clk 0:00:02.6]}
75... Qxf3+ {[%clk 0:00:08.3]} 76. Kg1 {[%clk 0:00:03.2]} 76... Qe3+ {[%clk
0:00:08]} 77. Kf1 {[%clk 0:00:03.3]} 77... f3 {[%clk 0:00:06.5]} 78. Qd8+ {[%clk
0:00:03.3]} 78... Kc6 {[%clk 0:00:07]} 79. Qc7+ {[%clk 0:00:03.4]} 79... Kb5
{[%clk 0:00:07.6]} 80. Qd7+ {[%clk 0:00:03.6]} 80... Ka6 {[%clk 0:00:08.1]} 81.
Qa7+ {[%clk 0:00:03.7]} 81... Kb5 {[%clk 0:00:08.6]} 82. Qd7+ {[%clk 0:00:04.1]}
82... Kc4 {[%clk 0:00:09.1]} 83. Qc6+ {[%clk 0:00:04.2]} 83... Kb4 {[%clk
0:00:08.1]} 84. Qd6+ {[%clk 0:00:04.3]} 84... Ka5 {[%clk 0:00:08.6]} 85. Qa3+
{[%clk 0:00:02.9]} 85... Qxa3 {[%clk 0:00:08.3]} 0-1